[Event "14th Margaryan Memorial-GM 2024"]
[Site "Yerevan"]
[Date "2024.01.15"]
[Round "8.1"]
[White "Babujian, Levon"]
[Black "Shuvalova, Polina"]
[Result "1/2-1/2"]
[ECO "D37"]
[WhiteElo "2346"]
[BlackElo "2475"]
[Annotator "TA"]
[PlyCount "190"]
[EventDate "2024.01.08"]
[EventType "tourn"]
[EventCountry "ARM"]
[SourceTitle "playchess.com"]
[Source "ChessBase"]
[SourceQuality "1"]
[TimeControl "40/5400+30:1800+30"]

{[%evp 13,190,0,0,0,7,9,6,6,0,10,14,0,5,0,0,0,16,0,0,0,0,0,0,0,-11,-15,-15,-12,0,0,0,0,0,-28,0,-36,0,0,0,-14,-14,-14,-14,-14,-14,-14,-14,-14,-15,-18,0,-3,-2,-503,-503,-503,-503,-449,-436,-259,-245,-244,-229,-214,-187,-1477,-1488,-1213,-1602,-5531,-12804,-12822,-12822,-12824,-12825,-12826,-12826,-12829,-12829,-12830,-12821,-12824,-12825,-12827,-12828,-12828,-12829,-12828,-12827,-12825,-12826,-2125,-149,-149,-149,-149,-149,-12829,-12830,-12829,-12831,-12831,-10941,-12836,-12836,-12837,-12835,-12835,-12835,-12836,-12836,-12841,-12841,-12841,-12842,-12842,-12843,-12844,-12844,-12845,0,0,0,0,0,0,0,0,0,0,0,0,0,0,0,0,0,0,0,0,0,0,0,0,0,0,0,0,0,0,0,0,0,0,0,0,0,0,0,0,0,0,0,0,0,0,0,0,0,0,0,0,0,0,0,0,0,0,0]} 1. d4 {[%emt 0:04:29]} Nf6 {[%emt 0:00:04]} 2. c4 {[%emt 0:00:16]} e6 {[%emt 0:00:05]} 3. Nf3 {[%emt 0:00:12]} d5 {[%emt 0:00:05]} 4. Nc3 {[%emt 0:00:06]} Be7 {[%emt 0:00:08]} 5. Bf4 {[%emt 0:00:07]} O-O {[%emt 0:00:06]} 6. e3 {[%emt 0:00:02]} Nbd7 {[%emt 0:00:06]} 7. c5 {[%emt 0:00:23]} Nh5 {[%emt 0:00:07]} 8. Bd3 {[%emt 0:00:08] D37: Queen's Gambit Declined: 5 Bf4.} Nxf4 {[%emt 0:00:05]} 9. exf4 {[%emt 0:00:04]} b6 {[%emt 0:00:06]} 10. b4 {[%emt 0:00:11]} a5 {[%emt 0:00:37]} 11. a3 {[%emt 0:00:12]} c6 {[%emt 0:00:03]} 12. O-O {[%emt 0:00:04]} Ba6 {[%emt 0:00:04]} 13. Bxa6 {[%emt 0:01:36]} Rxa6 {[%emt 0:00:03]} 14. Qe2 {[%emt 0:00:34]} Qa8 {[%emt 0:00:05] Strongly threatening ...axb4.} 15. Rab1 {[%emt 0:04:43]} axb4 {[%emt 0:00:10]} 16. axb4 {[%emt 0:00:04]} Bf6 {[%emt 0:01:42]} 17. Rfc1 {[%emt 0:01:40]} Ra3 {[%emt 0:02:34]} 18. Ne5 {[%emt 0:11:36] [#]} Nxe5 $146 {[%emt 0:00:41]} ({Predecessor:} 18... Bxe5 19. fxe5 Rb8 20. Qc2 h6 21. g3 bxc5 22. bxc5 Rxb1 23. Qxb1 Qa5 24. Qb2 f6 25. exf6 Nxf6 {½-½ Sargsyan,S (2601)-Vrolijk,L (2467) Groningen op 57th 2019 (3)}) 19. fxe5 {[%emt 0:00:51]} Bg5 {[%emt 0:09:53]} 20. Rc2 {[%emt 0:02:31]} bxc5 {[%emt 0:03:41]} 21. bxc5 {[%emt 0:01:03]} Rb8 {[%emt 0:01:14]} 22. Rcb2 {[%emt 0:06:01]} Rxb2 {[%emt 0:00:28]} 23. Qxb2 {[%emt 0:00:05]} h5 {[%emt 0:00:28]} (23... f6 $5 {[%cal Rf6e5]}) 24. Qc2 {[%emt 0:18:24]} (24. g3 $5) 24... g6 {[%emt 0:01:36]} 25. g3 {[%emt 0:04:07]} Qa5 {[%emt 0:03:03]} 26. Rb3 {[%emt 0:01:12]} Rxb3 {[%emt 0:04:45]} 27. Qxb3 $11 {[%emt 0:00:30][%mdl 4096] Endgame KQB-KQN} Qa1+ {[%emt 0:00:06]} 28. Kg2 {[%emt 0:00:06]} Qe1 {[%emt 0:00:14]} 29. Qc2 {[%emt 0:05:25]} Bd2 {[%emt 0:05:35]} 30. Nd1 {[%emt 0:02:02]} g5 $36 {[%emt 0:05:22][%mdl 2048] With the idea ...g4. Black has the initiative.} 31. h3 {[%emt 0:01:02]} g4 {[%emt 0:00:41]} 32. hxg4 {[%emt 0:01:42]} hxg4 {[%emt 0:00:03]} 33. f4 $2 {[%emt 0:11:24][%mdl 8192]} (33. Kh2 $11) 33... Qe2+ $19 {[%emt 0:06:31]} (33... gxf3+ $2 34. Kxf3 Kg7 35. Kg2 $19) 34. Kg1 {[%emt 0:05:46]} Kg7 {[%emt 0:01:28]} 35. Nf2 {[%emt 0:02:01][%cal Of2g4]} Qe3 $1 {[%emt 0:05:28][%csl LRd4,LRg3]} 36. Kf1 {[%emt 0:00:42]} (36. Qd3 $142 Qxd3 {[%mdl 64] Remove Defender} 37. Nxd3) 36... Bc3 {[%emt 0:00:38]} (36... Qxd4 37. Nxg4 Qa1+ 38. Kg2 $11) 37. Qd3 {[%emt 0:12:05]} Qxd3+ {[%emt 0:00:07]} ({And not} 37... Qxd4 38. Qe2 $17) ({Worse is} 37... Bxd4 38. Qxe3 Bxe3 39. Nd3) 38. Nxd3 {[%emt 0:00:04]} Bxd4 {[%emt 0:00:03] KB-KN} 39. Nb4 $2 {[%emt 0:01:06]} (39. Ke2) 39... Bxc5 {[%emt 0:00:06]} 40. Nxc6 {[%emt 0:00:00]} Kf8 {[%emt 0:00:00]} 41. Ke2 {[%emt 0:15:39]} Ke8 {[%emt 0:19:29]} 42. Na5 {[%emt 0:00:06]} Kd7 {[%emt 0:00:05]} 43. Nb3 {[%emt 0:02:05]} Kc6 {[%emt 0:00:09]} 44. Nd2 {[%emt 0:00:56]} Kb5 {[%emt 0:01:31]} 45. Kd3 {[%emt 0:00:30]} Bf2 {[%emt 0:00:07]} 46. Nf1 {[%emt 0:00:06]} Kc5 {[%emt 0:00:34]} 47. Ke2 {[%emt 0:00:18]} Bg1 $1 {[%emt 0:00:04]} 48. Kd3 {[%emt 0:00:03]} Kb4 {[%emt 0:04:09]} 49. Nd2 {[%emt 0:01:12]} Bf2 {[%emt 0:00:05]} 50. Nf1 {[%emt 0:00:12]} Kb3 $1 {[%emt 0:00:06]} 51. Ke2 {[%emt 0:00:56]} Bg1 {[%emt 0:01:42]} 52. Kd3 {[%emt 0:00:11]} Kb2 $2 {[%emt 0:00:03]} (52... Ka4 $1 $19 {[%cal Ra4b3] and Black stays clearly on top. ...Kb3 is the strong threat.} 53. Nd2 Bf2) 53. Kd2 $17 {[%emt 0:00:07]} Ka3 $1 {[%emt 0:19:59] Hoping for ...Kb4.} 54. Kc3 {[%emt 0:01:07]} Bf2 {[%emt 0:00:06]} 55. Kd3 $2 {[%emt 0:01:29][%mdl 8192]} (55. Kd2 $17) 55... Kb4 $19 {[%emt 0:00:25]} 56. Ke2 {[%emt 0:05:12]} Bg1 $1 {[%emt 0:01:10]} 57. Kd3 {[%emt 0:01:09]} Kb3 $1 {[%emt 0:00:04]} 58. Nd2+ {[%emt 0:03:36] [#]} Kb2 $1 {[%emt 0:00:04]} 59. Nf1 {[%emt 0:00:49] [#]} Kc1 $1 {[%emt 0:00:05]} 60. Nd2 {[%emt 0:00:46]} Kd1 {[%emt 0:00:06]} 61. Nb1 {[%emt 0:01:58]} Bf2 {[%emt 0:02:38]} 62. Nc3+ {[%emt 0:00:20]} Ke1 {[%emt 0:00:04]} 63. Ne2 {[%emt 0:02:02] [#]} Bxg3 $1 {[%emt 0:02:19][%mdl 512]} 64. Nxg3 {[%emt 0:00:15] KN-KP} Kf2 {[%emt 0:00:05]} 65. Ne2 {[%emt 0:01:22]} g3 {[%emt 0:00:13]} 66. f5 {[%emt 0:00:04]} g2 $2 {[%emt 0:02:01]} (66... exf5 $19 {aiming for ...g2.} 67. Nf4 g2 68. Nh3+ Kf1) 67. f6 $11 {[%emt 0:00:05] The position is equal.} g1=Q {[%emt 0:06:22]} (67... g1=R 68. Nxg1 Kxg1 69. Kd4 $17) (67... Kf3 $5) 68. Nxg1 {[%emt 0:00:14]} Kxg1 {[%emt 0:00:03] K3P-KPP} 69. Kd4 {[%emt 0:00:40]} Kf2 {[%emt 0:00:04]} (69... Kh1 $5 70. Kc5 $8 Kg1 $11) 70. Kc5 $1 {[%emt 0:00:02]} Ke3 {[%emt 0:00:06]} (70... Ke1 $5) 71. Kd6 $1 {[%emt 0:00:02]} d4 {[%emt 0:00:03]} (71... Kf4 $5 72. Ke7 $8 Kxe5 73. Kxf7 d4 $11) 72. Ke7 $1 {[%emt 0:00:02]} d3 {[%emt 0:00:03]} 73. Kxf7 {[%emt 0:00:04]} d2 {[%emt 0:00:02]} 74. Kxe6 {[%emt 0:00:26]} d1=Q {[%emt 0:00:06]} (74... d1=B 75. f7 Bb3+ 76. Kf6 Bxf7 77. Kxf7 Kf4 78. e6 Kf5 79. e7) 75. Ke7 $1 {[%emt 0:00:05]} Qd4 {[%emt 0:14:31]} 76. f7 {[%emt 0:00:22]} Qxe5+ {[%emt 0:02:21]} 77. Kd7 {[%emt 0:00:12]} Qf6 {[%emt 0:01:02]} 78. Ke8 {[%emt 0:00:05]} Qe6+ {[%emt 0:00:11]} 79. Kf8 {[%emt 0:00:04]} Kf4 {[%emt 0:00:50]} 80. Kg7 {[%emt 0:00:07]} Qd7 {[%emt 0:00:44]} 81. Kh8 $1 {[%emt 0:01:16]} Qe7 {[%emt 0:05:09]} 82. Kg8 {[%emt 0:00:14] Repels Qf8+} Qe6 {[%emt 0:00:09]} 83. Kg7 {[%emt 0:01:49]} Qe5+ {[%emt 0:00:05]} 84. Kg8 {[%emt 0:00:14]} Qd5 {[%emt 0:00:04]} 85. Kg7 {[%emt 0:00:31]} Qg5+ {[%emt 0:00:03]} 86. Kh7 {[%emt 0:00:18]} Qh5+ {[%emt 0:00:05]} 87. Kg8 {[%emt 0:00:26]} Qg4+ {[%emt 0:00:09]} 88. Kh7 {[%emt 0:00:06]} Qf5+ {[%emt 0:00:05]} 89. Kg8 {[%emt 0:00:20]} Qg6+ {[%emt 0:00:03]} 90. Kh8 {[%emt 0:00:05]} Qf6+ {[%emt 0:00:05]} 91. Kg8 {[%emt 0:00:06]} Qg5+ {[%emt 0:00:03]} 92. Kh7 {[%emt 0:00:15]} Qf5+ {[%emt 0:00:06]} 93. Kg8 {[%emt 0:00:05]} Qe6 {[%emt 0:00:09]} 94. Kg7 {[%emt 0:00:08]} Qe7 {[%emt 0:00:11]} 95. Kg8 {[%emt 0:00:07]} Qg5+ {[%emt 0:00:07] White happily takes the draw.   Weighted Error Value: White=0.55/Black=0.12 (very precise)} 1/2-1/2

[Event "14th Margaryan Memorial-GM 2024"]
[Site "Yerevan"]
[Date "2024.01.15"]
[Round "8.2"]
[White "Movahed, Sina"]
[Black "Davtyan, Arsen"]
[Result "1/2-1/2"]
[ECO "C78"]
[WhiteElo "2450"]
[BlackElo "2392"]
[Annotator "ChessBase"]
[PlyCount "159"]
[EventDate "2024.01.08"]
[EventType "tourn"]
[EventCountry "ARM"]
[SourceTitle "playchess.com"]
[Source "ChessBase"]
[SourceQuality "1"]
[TimeControl "40/5400+30:1800+30"]

1. e4 {[%emt 0:03:42]} e5 {[%emt 0:00:04]} 2. Nf3 {[%emt 0:00:06]} Nc6 {[%emt 0:00:04]} 3. Bb5 {[%emt 0:00:05]} a6 {[%emt 0:00:05]} 4. Ba4 {[%emt 0:00:05]} Nf6 {[%emt 0:00:06]} 5. O-O {[%emt 0:00:05]} b5 {[%emt 0:00:04]} 6. Bb3 {[%emt 0:00:05]} Bc5 {[%emt 0:00:06]} 7. c3 {[%emt 0:00:07]} d6 {[%emt 0:00:05]} 8. d4 {[%emt 0:00:14]} Bb6 {[%emt 0:00:07]} 9. a4 {[%emt 0:00:13]} Rb8 {[%emt 0:00:06]} 10. a5 {[%emt 0:00:13]} Ba7 {[%emt 0:00:07]} 11. h3 {[%emt 0:00:06]} O-O {[%emt 0:00:09]} 12. Be3 {[%emt 0:00:07]} Ra8 {[%emt 0:00:41]} 13. Nbd2 {[%emt 0:02:41]} h6 {[%emt 0:00:23]} 14. Re1 {[%emt 0:02:51]} Re8 {[%emt 0:00:54]} 15. Bc2 {[%emt 0:01:47]} Bb7 {[%emt 0:00:50]} 16. d5 {[%emt 0:01:52]} Nb8 {[%emt 0:02:07]} 17. c4 {[%emt 0:01:59]} c6 {[%emt 0:03:27]} 18. b3 {[%emt 0:04:49]} Bxe3 {[%emt 0:05:53]} 19. Rxe3 {[%emt 0:00:15]} cxd5 {[%emt 0:11:11]} 20. cxd5 {[%emt 0:00:48]} Re7 {[%emt 0:00:55]} 21. b4 {[%emt 0:09:38]} Rc7 {[%emt 0:02:10]} 22. Raa3 {[%emt 0:01:28]} Nbd7 {[%emt 0:06:50]} 23. Rac3 {[%emt 0:04:47]} Rac8 {[%emt 0:03:20]} 24. Nb1 {[%emt 0:01:49]} Nf8 {[%emt 0:11:10]} 25. Qd2 {[%emt 0:02:22]} Ng6 {[%emt 0:02:36]} 26. Bd3 {[%emt 0:01:16]} Qd7 {[%emt 0:13:30]} 27. Bf1 {[%emt 0:02:05]} Nh7 {[%emt 0:03:40]} 28. Rxc7 {[%emt 0:04:24]} Rxc7 {[%emt 0:01:16]} 29. Nc3 {[%emt 0:00:10]} f5 {[%emt 0:07:44]} 30. exf5 {[%emt 0:01:09]} Ne7 {[%emt 0:00:04]} 31. Nh4 {[%emt 0:02:18]} Nf6 {[%emt 0:01:45]} 32. Rg3 {[%emt 0:03:18]} Rxc3 {[%emt 0:07:56]} 33. Qxc3 {[%emt 0:01:11]} Ne4 {[%emt 0:00:01]} 34. Qb3 {[%emt 0:14:14]} Nxg3 {[%emt 0:01:13]} 35. Qxg3 {[%emt 0:00:09]} Nxd5 {[%emt 0:00:48]} 36. Be2 {[%emt 0:07:32]} Nf6 {[%emt 0:04:11]} 37. Kh2 {[%emt 0:07:18]} Bd5 {[%emt 0:06:21]} 38. Qe3 {[%emt 0:02:03]} Qb7 {[%emt 0:02:07]} 39. Ng6 {[%emt 0:01:15]} Kf7 {[%emt 0:01:08]} 40. g4 {[%emt 0:00:00]} Qc7 {[%emt 0:00:00]} 41. h4 {[%emt 0:22:23]} Bb7 {[%emt 0:23:20]} 42. f3 {[%emt 0:10:52]} Nd5 {[%emt 0:01:40]} 43. Qa7 {[%emt 0:03:28]} Nxb4 {[%emt 0:01:44]} 44. Bd1 {[%emt 0:02:03]} Nc6 {[%emt 0:00:37]} 45. Bb3+ {[%emt 0:01:39]} Ke8 {[%emt 0:00:01]} 46. Qe3 {[%emt 0:00:01]} Nd4 {[%emt 0:00:22]} 47. f6 {[%emt 0:01:56]} Nxb3 {[%emt 0:01:25]} 48. Qxb3 {[%emt 0:00:10]} Qf7 {[%emt 0:00:08]} 49. Qc2 {[%emt 0:00:33]} gxf6 {[%emt 0:01:07]} 50. Qf5 {[%emt 0:01:36]} b4 {[%emt 0:02:44]} 51. Nh8 {[%emt 0:01:17]} Qc4 {[%emt 0:00:05]} 52. Qg6+ {[%emt 0:00:48]} Kd7 {[%emt 0:00:26]} 53. Qg7+ {[%emt 0:00:30]} Kc6 {[%emt 0:01:32]} 54. Qe7 {[%emt 0:00:12]} Qd5 {[%emt 0:04:42]} 55. Nf7 {[%emt 0:00:48]} Kc5 {[%emt 0:00:00]} 56. Nxd6 {[%emt 0:02:13]} Qxd6 {[%emt 0:00:55]} 57. Qxb7 {[%emt 0:00:02]} e4+ {[%emt 0:00:42]} 58. Kh3 {[%emt 0:00:34]} exf3 {[%emt 0:00:15]} 59. Qxf3 {[%emt 0:00:24]} Kb5 {[%emt 0:00:15]} 60. h5 {[%emt 0:00:51]} Kxa5 {[%emt 0:00:34]} 61. Qe3 {[%emt 0:00:06]} Qf8 {[%emt 0:01:18]} 62. Qc1 {[%emt 0:01:19]} b3 {[%emt 0:01:37]} 63. Qc7+ {[%emt 0:00:16]} Kb4 {[%emt 0:00:26]} 64. Qb6+ {[%emt 0:00:42]} Kc3 {[%emt 0:00:02]} 65. Qe3+ {[%emt 0:01:17]} Kc2 {[%emt 0:00:33]} 66. Qe2+ {[%emt 0:00:48]} Kb1 {[%emt 0:01:04]} 67. Qd1+ {[%emt 0:01:00]} Ka2 {[%emt 0:00:01]} 68. Qe2+ {[%emt 0:00:14]} Kb1 {[%emt 0:00:57]} 69. Qd1+ {[%emt 0:00:25]} Ka2 {[%emt 0:00:01]} 70. Qe2+ {[%emt 0:00:12]} b2 {[%emt 0:00:21]} 71. Qc4+ {[%emt 0:00:13]} Ka3 {[%emt 0:00:07]} 72. Qxa6+ {[%emt 0:00:44]} Kb3 {[%emt 0:00:03]} 73. Qd3+ {[%emt 0:00:23]} Kb4 {[%emt 0:00:10]} 74. Qc2 {[%emt 0:00:24]} Ka3 {[%emt 0:00:16]} 75. Qc3+ {[%emt 0:00:13]} Ka2 {[%emt 0:00:05]} 76. Qc4+ {[%emt 0:00:05]} Kb1 {[%emt 0:00:04]} 77. Qd3+ {[%emt 0:00:14]} Ka1 {[%emt 0:00:06]} 78. Qa6+ {[%emt 0:00:06]} Kb1 {[%emt 0:00:08]} 79. Qd3+ {[%emt 0:00:06]} Kc1 {[%emt 0:00:01]} 80. Qc3+ {[%emt 0:00:07]} 1/2-1/2

[Event "14th Margaryan Memorial-GM 2024"]
[Site "Yerevan"]
[Date "2024.01.15"]
[Round "8.3"]
[White "Shahinyan, David"]
[Black "Ivanov, Sergey"]
[Result "1-0"]
[ECO "C01"]
[WhiteElo "2436"]
[BlackElo "2462"]
[Annotator "TA"]
[PlyCount "139"]
[EventDate "2024.01.08"]
[EventType "tourn"]
[EventCountry "ARM"]
[SourceTitle "playchess.com"]
[Source "ChessBase"]
[SourceQuality "1"]
[TimeControl "40/5400+30:1800+30"]

{[%evp 10,139,-2,-9,-1,-9,0,-2,0,0,1,-22,-6,-10,-13,-28,-18,-32,-32,-36,-36,-41,-31,-68,-82,-89,-56,-77,-27,-18,0,-2,0,-7,-8,-10,-10,-14,0,-2,0,0,0,0,0,0,0,0,0,0,0,0,0,0,0,0,0,0,0,0,0,0,0,0,0,0,0,0,0,0,0,0,0,0,74,74,74,74,104,104,104,104,104,104,104,104,104,104,104,104,104,104,870,863,849,834,801,800,767,756,700,681,624,587,29968,29972,29967,29973,29969,29974,29974,29975,29975,29976,29976,29976,29975,29977,29977,0,0,0,29979,29980,29980,29981,29981,29983,29983,29984,29985,0]} 1. e4 {[%emt 0:08:19]} e6 {[%emt 0:00:08]} 2. d4 {[%emt 0:00:19]} d5 {[%emt 0:00:09]} 3. Bd3 {[%emt 0:01:07][%cal Bf1d3,Bd3e4,Be4f3][%mdl 32]} dxe4 {[%emt 0:00:41]} 4. Bxe4 {[%emt 0:00:03]} Nf6 {[%emt 0:00:11]} 5. Bf3 {[%emt 0:00:03]} c5 {[%emt 0:00:15]} 6. Ne2 {[%emt 0:00:09][%cal Bg1e2,Be2d4,Bd4b3][%mdl 32]} Be7 {[%emt 0:00:25] C01: French: Exchange Variation.} 7. Be3 {[%emt 0:01:45]} O-O {[%emt 0:01:22]} 8. Nbc3 {[%emt 0:01:36]} cxd4 {[%emt 0:00:47] The position is equal.} 9. Nxd4 {[%emt 0:06:23]} e5 {[%emt 0:00:42]} 10. Nb3 {[%emt 0:02:11]} Nc6 {[%emt 0:00:55]} 11. O-O {[%emt 0:05:44]} Bf5 {[%emt 0:02:14]} 12. Bxc6 {[%emt 0:08:43]} bxc6 {[%emt 0:00:37]} 13. Qe2 {[%emt 0:00:07] [#]} Nd5 $146 {[%emt 0:06:06]} ({Predecessor:} 13... Qc7 14. Rad1 a5 15. f3 Rfb8 16. Na4 Rb4 17. Nbc5 Bxc5 18. Nxc5 Rxb2 19. f4 Rxc2 {0-1 Li,T (1822)-Tsay,V (2310) PNWCC Online blitz JP 8th 2020 (2)}) 14. Rfd1 {[%emt 0:01:52]} Nxc3 {[%emt 0:04:07]} 15. bxc3 {[%emt 0:00:16]} Qc7 {[%emt 0:00:24]} 16. Rd2 {[%emt 0:20:40]} c5 {[%emt 0:08:30]} 17. Qa6 {[%emt 0:01:46]} Rfd8 {[%emt 0:14:49]} 18. Rad1 {[%emt 0:02:10] [#]} Bxc2 {[%emt 0:01:39]} 19. Rxd8+ $11 {[%emt 0:00:20]} Rxd8 {[%emt 0:00:24]} 20. Rxd8+ {[%emt 0:00:38]} Qxd8 {[%emt 0:02:32]} 21. h3 {[%emt 0:06:17]} Qc7 {[%emt 0:26:07]} 22. Qb5 {[%emt 0:01:47] Strongly threatening Qe8+.} Bxb3 {[%emt 0:00:32]} 23. Qe8+ {[%emt 0:03:23]} Bf8 {[%emt 0:00:02]} 24. axb3 {[%emt 0:00:06][%mdl 4096] Endgame KQB-KQB} a5 {[%emt 0:05:40]} 25. c4 {[%emt 0:00:12]} f6 {[%emt 0:05:17]} 26. Qe6+ {[%emt 0:01:37]} Kh8 {[%emt 0:01:41]} 27. g4 {[%emt 0:05:29]} Qd6 {[%emt 0:01:54]} 28. Qf7 {[%emt 0:01:43]} h6 {[%emt 0:02:19]} 29. Qa7 {[%emt 0:01:16]} Kg8 {[%emt 0:04:31]} 30. Kg2 {[%emt 0:00:14]} Qd3 {[%emt 0:05:06]} 31. Qa8 {[%emt 0:02:34]} Kf7 {[%emt 0:00:12]} ({Don't do} 31... Qxb3 32. Bxc5 Qxc4 33. Bxf8 $16) 32. Qb7+ {[%emt 0:00:03]} Kg6 {[%emt 0:00:51]} 33. h4 {[%emt 0:03:00]} f5 {[%emt 0:02:22]} 34. Qc8 {[%emt 0:05:15][%csl LRc5,LRf8]} f4 {[%emt 0:02:32]} 35. Bxc5 {[%emt 0:07:08]} Bxc5 {[%emt 0:00:20]} 36. Qxc5 {[%emt 0:00:03] KQ-KQ} Qe2 {[%emt 0:01:13]} 37. Qc6+ {[%emt 0:00:43]} Kh7 $1 {[%emt 0:00:02]} 38. Qf3 {[%emt 0:00:49]} Qc2 {[%emt 0:00:01]} 39. h5 {[%emt 0:00:11]} Kh8 {[%emt 0:01:20]} 40. Qd5 {[%emt 0:00:00][%csl LRa5,LRe5]} e4 {[%emt 0:00:00] Threatens to win with ...e3.} 41. Qf5 {[%emt 0:20:30]} (41. Qxa5 e3 42. Qe1 Qe4+ 43. f3 Qc2+ 44. Kf1 Qxb3 $15) 41... f3+ {[%emt 0:18:10]} (41... a4 $11 {keeps the balance.}) 42. Kg3 $16 {[%emt 0:00:19] aiming for Qe5.} Qxb3 {[%emt 0:00:16]} 43. Qxe4 {[%emt 0:05:40]} a4 {[%emt 0:00:40]} 44. c5 {[%emt 0:01:07][%cal Bc4c5,Bc5c6][%mdl 32]} a3 {[%emt 0:00:29]} 45. c6 {[%emt 0:00:58]} (45. Qxf3 Qxf3+ 46. Kxf3 a2 $19) 45... Qc3 {[%emt 0:08:08]} 46. Qxf3 {[%emt 0:02:53]} Qe5+ {[%emt 0:00:42]} 47. Kg2 {[%emt 0:00:43]} a2 {[%emt 0:00:43] [#]} 48. c7 $1 {[%emt 0:00:05][%mdl 512]} Qxc7 {[%emt 0:00:19] ( -> ...Qc8)} 49. Qa8+ {[%emt 0:00:03]} Kh7 {[%emt 0:00:06]} 50. Qxa2 {[%emt 0:00:03]} Qf4 $2 {[%emt 0:00:43][%mdl 8192]} (50... Qc6+ $16 51. f3 Kh8) 51. Qc2+ $1 $18 {[%emt 0:00:28]} Kg8 {[%emt 0:00:32]} 52. Qc8+ $1 {[%emt 0:00:03]} Kf7 {[%emt 0:00:08]} 53. Qd7+ {[%emt 0:01:04]} Kf6 {[%emt 0:01:11]} 54. Qd8+ $1 {[%emt 0:00:55]} Kf7 {[%emt 0:00:21]} 55. Qd5+ $1 {[%emt 0:00:04]} Ke7 {[%emt 0:01:02]} 56. Qb7+ $1 {[%emt 0:00:20]} Kf6 {[%emt 0:01:08]} 57. Qf3 {[%emt 0:02:58]} Kg5 {[%emt 0:00:06]} 58. Qxf4+ {[%emt 0:00:03]} Kxf4 {[%emt 0:00:06] K3P-KPP} 59. f3 {[%emt 0:00:01]} Ke5 {[%emt 0:00:14]} 60. Kg3 {[%emt 0:01:13]} Ke6 {[%emt 0:00:38]} 61. Kf4 {[%emt 0:00:33]} Kf6 {[%emt 0:00:00] [#]} 62. g5+ $1 {[%emt 0:01:11][%mdl 512]} hxg5+ {[%emt 0:00:20] KPP-KPP} 63. Kg4 {[%emt 0:00:06]} Ke6 {[%emt 0:01:35]} 64. Kxg5 {[%emt 0:00:03] White wants to mate with Kg6. KPP-KP} Kf7 $1 {[%emt 0:00:07]} 65. Kf5 {[%emt 0:00:02] Kg5 would kill now.} Ke7 $2 {[%emt 0:01:17][%mdl 8192] [#]} (65... Kf8 $11 66. Kg6 Kg8 67. h6 gxh6 68. Kxh6 Kf7 69. Kg5 Kg7 70. f4 Kf7) 66. Kg6 $1 {[%emt 0:00:03] White mates.} Kf8 {[%emt 0:00:05] [#]} 67. h6 $1 {[%emt 0:00:02]} gxh6 {[%emt 0:00:06]} 68. Kxh6 {[%emt 0:00:13]} Kf7 {[%emt 0:00:07]} 69. Kg5 {[%emt 0:00:04]} Kf8 {[%emt 0:06:42]} 70. f4 $2 {[%emt 0:07:42][%mdl 32768] Weighted Error Value: White=0.03 (flawless) /Black=0.18 (very precise) . Loss on time!?} (70. Kf6 {mates} Ke8 71. f4 Kd8 72. f5 Ke8 73. Kg7 Kd7 74. f6 Ke6 75. f7) 1-0